bitfinex/quotes_SOLUSD_20251018
["timestamp","ask_amount","ask_price","bid_price","bid_amount"]
[1760804998179,26.32321106,184.55,184.51,6.09976044]
[1760804998378,22.88,184.55,184.52,0.68]
[1760804998584,23.6,184.55,184.52,0.68]
[1760804999379,23.6,184.56,184.52,6.09934228]
[1760804999579,4.16321106,184.58,184.53,0.68]
[1760804999773,0.72,184.57,184.53,4.12321106]
[1760805000373,4.16321106,184.59,184.54,0.68]
[1760805000568,23.6,184.58,184.55,0.68]
[1760805000769,22.88,184.58,184.55,0.68]
[1760805001377,27.04321106,184.59,184.55,0.68]
[1760805001784,23.6,184.59,184.55,6.09858242]
[1760805001988,0.72,184.59,184.55,6.09858242]
[1760805002167,0.72,184.58,184.54,8.86208729]
[1760805002372,0.72,184.57,184.53,3.44321106]
[1760805002593,0.72,184.57,184.53,4.12321106]
[1760805002771,4.16321106,184.56,184.51,3.44321106]
[1760805003088,0.72,184.55,184.51,3.44321106]
[1760805003268,0.72,184.55,184.5,6.1000542]
[1760805003269,4.16321106,184.55,184.5,8.86326526]
[1760805003476,0.72,184.54,184.5,8.86326526]
[1760805003684,0.72,184.53,184.48,8.86382821]
[1760805003883,0.72,184.53,184.49,0.68]
[1760805004273,3.44321106,184.53,184.48,8.86382821]
[1760805004492,0.72,184.52,184.48,5.42061715]
[1760805004710,3.44321106,184.53,184.48,5.42061715]
[1760805004869,0.72,184.51,184.48,5.42061715]
[1760805005479,4.16321106,184.53,184.49,0.68]
[1760805005887,0.72,184.52,184.48,3.44321106]
[1760805006067,3.44321106,184.53,184.48,3.44321106]
[1760805006269,4.16321106,184.52,184.46,3.44321106]
[1760805006470,0.72,184.51,184.46,3.44321106]
[1760805006778,0.72,184.5,184.46,4.11321106]
[1760805006985,4.16321106,184.5,184.45,3.44321106]
[1760805007172,4.16321106,184.5,184.45,4.11321106]
[1760805007373,0.72,184.5,184.46,4.11321106]
[1760805008391,0.72,184.49,184.44,0.67]
[1760805008697,0.72,184.48,184.44,4.11321106]
[1760805008873,33.75647521,184.55,184.44,3.44321106]
[1760805009070,0.72,184.54,184.47,3.44321106]
[1760805009394,3.44321106,184.52,184.47,4.11321106]
[1760805009705,27.04321106,184.53,184.48,4.11321106]
[1760805009894,26.32321106,184.53,184.48,4.11321106]
[1760805010088,0.72,184.52,184.48,4.11321106]
[1760805010484,0.72,184.51,184.48,3.44321106]
[1760805010789,27.04321106,184.53,184.48,4.11321106]
[1760805011101,23.6,184.53,184.49,4.11321106]
[1760805012096,22.88,184.53,184.49,3.44321106]
[1760805012301,0.72,184.52,184.49,3.44321106]
[1760805013002,3.44321106,184.51,184.47,6.09086809]
[1760805013399,4.10321106,184.51,184.47,6.09086809]
[1760805013777,3.44321106,184.5,184.47,0.67]
[1760805013983,3.44321106,184.5,184.46,6.11122402]
[1760805013984,4.10321106,184.5,184.46,6.11122402]
[1760805014312,4.10321106,184.5,184.47,0.69]
[1760805015084,4.10321106,184.5,184.45,9.5547345]
[1760805015286,4.10321106,184.5,184.46,0.69]
[1760805016010,3.44321106,184.5,184.47,0.69]
[1760805016503,4.10321106,184.5,184.47,5.42090253]
[1760805016687,3.44321106,184.5,184.47,5.42090253]
[1760805016889,0.66,184.49,184.45,5.42145804]
[1760805017088,4.10321106,184.49,184.45,5.42145804]
[1760805017305,0.66,184.48,184.45,5.42145804]
[1760805018204,4.10321106,184.48,184.44,5.4218056]
[1760805018505,4.10321106,184.48,184.44,0.69]
[1760805018698,4.10321106,184.47,184.42,6.11233817]
[1760805018900,4.10321106,184.47,184.37,0.69]
[1760805018901,3.44321106,184.43,184.37,0.69]
[1760805019103,3.44321106,184.4,184.37,0.69]
[1760805019403,3.44321106,184.41,184.37,0.69]
[1760805019990,3.44321106,184.41,184.38,5.42358173]
[1760805020197,4.10321106,184.41,184.37,6.11384126]
[1760805020503,0.66,184.4,184.37,5.42384126]
[1760805020909,3.44321106,184.41,184.37,6.11384126]
[1760805021208,4.10321106,184.41,184.37,6.11384126]
[1760805023003,3.44321106,184.39,184.35,6.11417147]
[1760805023207,4.10321106,184.38,184.35,5.42417147]
[1760805023916,3.44321106,184.37,184.34,5.42473484]
[1760805024510,4.10321106,184.37,184.34,5.42473484]
[1760805024894,3.56117626,184.37,184.34,0.69]
[1760805025095,3.44321106,184.37,184.34,0.69]
[1760805025921,3.44321106,184.37,184.35,5.42446433]
[1760805027020,3.44321106,184.36,184.34,5.42475859]
[1760805027231,3.44321106,184.37,184.34,6.11475859]
[1760805027417,0.66,184.36,184.34,5.42475859]
[1760805027624,3.44321106,184.35,184.33,5.42494673]
[1760805027999,3.44321106,184.35,184.32,10.84948036]
[1760805028194,3.44321106,184.35,184.32,11.53948036]
[1760805028422,3.44321106,184.35,184.32,6.11530889]
[1760805028628,3.44321106,184.4,184.34,3.44321106]
[1760805028829,3.44321106,184.4,184.35,4.13321106]
[1760805029119,3.44321106,184.4,184.36,6.1141701]
[1760805029302,3.44321106,184.4,184.37,0.69]
[1760805030321,0.66,184.41,184.37,6.11374081]
[1760805030515,3.44321106,184.41,184.38,0.69]
[1760805031517,4.10321106,184.41,184.36,6.1141701]
[1760805031721,4.10321106,184.41,184.37,0.69]
[1760805031919,3.44321106,184.4,184.37,0.69]
[1760805032244,22.88,184.43,184.36,5.4241701]
[1760805032427,0.66,184.42,184.36,6.1141701]
[1760805032732,3.44321106,184.41,184.36,6.1141701]
[1760805032916,4.10321106,184.41,184.37,6.11370414]
[1760805034104,3.44321106,184.41,184.37,5.42370414]
[1760805034324,3.44321106,184.41,184.38,0.69]
[1760805034528,4.10321106,184.41,184.37,5.42370414]
[1760805034734,4.10321106,184.41,184.37,0.69]
[1760805035327,3.44321106,184.41,184.37,0.69]
[1760805035524,4.10321106,184.44,184.38,3.44321106]
[1760805035714,4.10321106,184.44,184.39,0.69]
[1760805035910,3.44321106,184.43,184.39,0.69]
[1760805036116,3.44321106,184.43,184.38,3.44321106]
[1760805036320,3.44321106,184.43,184.4,0.69]
[1760805036519,4.10321106,184.43,184.4,5.42293632]
[1760805036920,4.10321106,184.43,184.4,6.11293632]
[1760805037138,3.44321106,184.43,184.4,6.11293632]
[1760805038144,4.10321106,184.47,184.41,4.13321106]
[1760805038321,4.10321106,184.47,184.41,3.44321106]
[1760805038641,4.10321106,184.47,184.43,5.42211137]
[1760805038938,4.10321106,184.47,184.43,6.11211137]
[1760805041230,3.44321106,184.48,184.44,0.69]
[1760805041415,0.66,184.51,184.44,4.13321106]
[1760805041610,4.10321106,184.51,184.45,4.13321106]
[1760805041822,3.44321106,184.51,184.46,0.69]
[1760805042723,4.10321106,184.52,184.46,4.13321106]
[1760805042924,3.44321106,184.52,184.47,0.69]
[1760805043125,3.44321106,184.52,184.47,5.42093565]
[1760805043336,4.13321106,184.52,184.48,0.69]
[1760805044018,4.13321106,184.51,184.47,5.42093565]
[1760805044219,0.69,184.5,184.47,5.42093565]
[1760805044424,3.44321106,184.51,184.47,6.11093565]
[1760805044625,4.13321106,184.51,184.47,6.11093565]
[1760805044938,25.71425711,184.55,184.45,121.56452197]
[1760805044939,4.13321106,184.5,184.45,121.56452197]
[1760805045237,3.44321106,184.46,184.43,5.4218651]
[1760805045718,4.13321106,184.46,184.43,5.4218651]
[1760805046133,3.44321106,184.46,184.43,5.4218651]
[1760805046331,4.13321106,184.46,184.43,5.4218651]
[1760805046533,3.44321106,184.44,184.4,0.69]
[1760805046735,4.13321106,184.44,184.4,0.69]
[1760805047128,3.44321106,184.44,184.4,5.42299349]
[1760805047328,3.44321106,184.44,184.41,0.69]
[1760805048038,3.44321106,184.43,184.4,5.42299349]
[1760805048243,3.44321106,184.43,184.39,6.11324012]
[1760805048453,4.13321106,184.42,184.38,14.28685592]
[1760805048651,4.13321106,184.41,184.37,0.69]
[1760805048829,3.44321106,184.41,184.38,0.69]
[1760805049140,4.13321106,184.41,184.37,5.42363295]
[1760805049443,4.13321106,184.41,184.37,6.11363295]
[1760805049751,3.44321106,184.38,184.35,0.69]
[1760805050039,3.44321106,184.38,184.33,6.11505289]
[1760805050222,4.13321106,184.38,184.34,0.69]
[1760805050425,3.44321106,184.38,184.35,6.11431361]
[1760805051037,3.44321106,184.37,184.35,5.42431361]
[1760805051245,4.13321106,184.37,184.34,5.42472409]
[1760805052133,3.44321106,184.36,184.33,5.42498752]
[1760805052333,3.44321106,184.36,184.33,6.11498752]
[1760805052840,3.44321106,184.35,184.33,5.42498752]
[1760805053625,3.44321106,184.35,184.32,5.42534722]
[1760805053824,3.44321106,184.35,184.32,6.11534722]
[1760805054024,3.44321106,184.36,184.33,0.69]
[1760805054625,3.44321106,184.36,184.34,0.69]
[1760805055032,3.44321106,184.35,184.32,5.42534722]
[1760805055239,0.69,184.36,184.32,6.11534722]
[1760805055445,2.20764379,184.35,184.32,6.11534722]
[1760805058250,2.20764379,184.34,184.31,0.69]
[1760805058451,2.20764379,184.34,184.3,5.42564174]
[1760805058635,2.20764379,184.34,184.31,0.69]
[1760805059152,2.20764379,184.34,184.32,0.69]
[1760805059338,2.20764379,184.34,184.3,5.42564174]
[1760805059538,2.20764379,184.34,184.31,0.69]
[1760805059746,19.70705037,184.41,184.29,0.79]
[1760805059747,2.20764379,184.32,184.29,0.79]
[1760805060243,2.20764379,184.32,184.29,6.21601266]
[1760805060756,22.88,184.38,184.29,0.1]
[1760805060757,2.20764379,184.31,184.29,0.1]
[1760805060951,2.20764379,184.31,184.29,5.52617701]
[1760805061932,2.20764379,184.31,184.29,6.21617701]
[1760805062344,2.20764379,184.31,184.29,0.1]
[1760805062632,2.20764379,184.31,184.29,5.52615927]
[1760805063139,2.20764379,184.32,184.29,5.52615927]
[1760805063448,2.20764379,184.33,184.3,0.69]
[1760805063648,2.20764379,184.34,184.3,0.69]
[1760805063851,22.88,184.38,184.31,0.69]
[1760805064037,22.88,184.38,184.31,2.89764379]
[1760805064038,2.20764379,184.37,184.31,2.89764379]
[1760805064232,2.20764379,184.37,184.32,0.69]
[1760805064434,2.20764379,184.37,184.33,0.69]
[1760805065041,2.89764379,184.37,184.33,0.69]
[1760805065362,2.89764379,184.36,184.31,0.69]
[1760805065546,2.89764379,184.36,184.32,0.69]
[1760805066033,0.69,184.36,184.33,5.42505289]
[1760805066231,2.20764379,184.37,184.33,5.42505289]
[1760805066455,2.20764379,184.37,184.34,0.71]
[1760805068252,2.20764379,184.37,184.34,6.1346543]
[1760805068553,0.72,184.42,184.35,0.71]
[1760805068759,0.72,184.42,184.36,2.20764379]
[1760805068933,0.72,184.42,184.36,2.91764379]
[1760805069134,2.20764379,184.41,184.36,2.91764379]
[1760805069353,2.92764379,184.4,184.34,36.00843399]
[1760805069664,2.92764379,184.4,184.34,21.19419458]
[1760805069864,2.92764379,184.4,184.35,0.71]
[1760805070067,0.72,184.39,184.35,0.71]
[1760805070361,2.92764379,184.38,184.34,5.42471397]
[1760805070657,0.72,184.38,184.34,6.13471397]
[1760805071744,2.20764379,184.39,184.33,5.42505289]
[1760805071940,0.72,184.39,184.34,0.71]
[1760805072339,0.72,184.39,184.35,0.71]
[1760805073452,2.92764379,184.39,184.35,0.71]
[1760805073655,0.72,184.38,184.34,5.42459881]
[1760805073855,0.72,184.38,184.34,6.08459881]
[1760805074155,0.72,184.37,184.34,5.42459881]
[1760805074672,0.72,184.37,184.33,5.42505289]
[1760805074959,0.72,184.37,184.33,6.08505289]
[1760805075752,0.72,184.36,184.31,16.43114644]
[1760805076061,25.80764379,184.38,184.32,0.66]
[1760805076260,2.92764379,184.38,184.32,2.86764379]
[1760805076443,2.92764379,184.38,184.33,0.66]
[1760805076643,2.92764379,184.4,184.34,0.66]
[1760805076844,25.80764379,184.4,184.34,0.66]
[1760805077041,2.20764379,184.39,184.34,0.66]
[1760805077242,2.92764379,184.38,184.34,0.66]
[1760805078757,22.88,184.4,184.31,13.56350265]
[1760805078758,2.92764379,184.37,184.31,6.08541057]
[1760805079265,2.92764379,184.36,184.32,0.66]
[1760805079460,2.20764379,184.33,184.29,0.1]
[1760805079778,2.20764379,184.31,184.29,0.1]
[1760805079974,2.92764379,184.3,184.29,0.1]
[1760805080342,25.80764379,184.3,184.29,0.1]
[1760805080543,2.92764379,184.3,184.29,0.1]
[1760805080764,13.804119,184.3,184.29,0.1]
[1760805081876,19.23005497,184.3,184.29,0.1]
[1760805082062,42.11005497,184.3,184.29,0.1]
[1760805082263,22.88,184.27,184.18,13.42910228]
[1760805082584,2.20764379,184.23,184.18,21.7261067]
[1760805082888,2.20764379,184.24,184.19,0.66]
[1760805083056,2.92764379,184.24,184.19,0.66]
[1760805083571,2.20764379,184.24,184.19,0.66]
[1760805083753,2.92764379,184.23,184.19,0.66]
[1760805084150,2.20764379,184.23,184.18,13.42910228]
[1760805084360,2.20764379,184.2,184.18,13.42910228]
[1760805084571,2.92764379,184.2,184.18,13.42910228]
[1760805085468,0.72,184.19,184.18,13.42910228]
[1760805085881,2.92764379,184.19,184.18,13.42910228]
[1760805086257,0.72,184.19,184.18,13.42910228]
[1760805086460,2.92764379,184.19,184.18,13.42910228]
[1760805086972,25.80764379,184.19,184.18,13.42910228]
[1760805087192,23.6,184.19,184.18,13.42910228]
[1760805087355,42.11329539,184.19,184.18,13.42910228]
[1760805088276,39.9056516,184.19,184.18,13.42910228]
[1760805088465,42.11329539,184.19,184.18,13.42910228]
[1760805089181,39.9056516,184.19,184.18,13.42910228]
[1760805089373,42.11329539,184.19,184.18,13.42910228]
[1760805089769,23.6,184.19,184.18,13.42910228]
[1760805089975,36.684119,184.19,184.18,13.42910228]
[1760805090476,42.11329539,184.19,184.18,13.42910228]
[1760805090952,36.684119,184.19,184.18,13.42910228]
[1760805092383,42.11329539,184.19,184.18,13.42910228]
[1760805095360,10.87647521,184.18,184.16,0.1]
[1760805095579,2.20764379,184.17,184.16,0.1]
[1760805095780,2.20764379,184.17,184.16,0.76]
[1760805096784,11.59647521,184.21,184.16,0.76]
[1760805096980,2.20764379,184.17,184.16,0.1]
[1760805097477,25.08764379,184.17,184.16,0.1]
[1760805100780,2.20764379,184.17,184.16,0.1]
[1760805101173,25.08764379,184.17,184.16,0.1]
[1760805106580,2.83980906,184.19,184.16,0.8]
[1760805106868,0.66,184.21,184.16,0.8]
[1760805107070,2.20764379,184.17,184.16,0.8]
[1760805107377,10.87647521,184.21,184.16,0.8]
[1760805107580,2.20764379,184.18,184.16,0.8]
[1760805107895,2.83954676,184.22,184.16,0.8]
[1760805108205,2.20764379,184.19,184.16,6.23003082]
[1760805108503,2.20764379,184.19,184.17,0.7]
[1760805108791,2.20764379,184.2,184.17,0.7]
[1760805108997,2.20764379,184.19,184.18,0.7]
[1760805109292,2.20764379,184.2,184.18,0.7]
[1760805109591,2.20764379,184.2,184.19,0.7]
[1760805109772,2.20764379,184.21,184.19,0.7]
[1760805109981,2.20764379,184.21,184.2,0.7]
[1760805110285,2.20764379,184.24,184.2,0.7]
[1760805110473,0.66,184.29,184.2,2.90764379]
[1760805110671,2.20764379,184.25,184.21,0.7]
[1760805111168,22.88,184.27,184.21,0.7]
[1760805111407,2.20764379,184.28,184.23,2.20764379]
[1760805111610,2.20764379,184.29,184.24,2.90764379]
[1760805111784,2.20764379,184.29,184.25,0.7]
[1760805111986,22.88,184.31,184.25,6.12735766]
[1760805112305,22.88,184.3,184.26,0.7]
[1760805112467,2.20764379,184.28,184.26,0.7]
[1760805112670,2.20764379,184.28,184.27,0.7]
[1760805113176,2.20764379,184.29,184.27,0.7]
[1760805113405,2.20764379,184.28,184.27,0.7]
[1760805114290,22.88,184.31,184.27,0.7]
[1760805114496,2.20764379,184.28,184.24,5.42770299]
[1760805114696,2.20764379,184.28,184.25,0.7]
[1760805115383,3.45218886,184.28,184.25,0.7]
[1760805116299,22.88,184.3,184.25,0.7]
[1760805116484,3.45218886,184.28,184.25,0.7]
[1760805116883,2.83791704,184.33,184.25,9.57957782]
[1760805117083,3.45218886,184.33,184.26,0.7]
[1760805117399,3.45218886,184.33,184.28,3.45218886]
[1760805117591,10.87647521,184.38,184.29,0.7]
[1760805117895,26.33218886,184.35,184.3,8.87812483]
[1760805118106,3.45218886,184.35,184.31,0.7]
[1760805118478,3.45218886,184.36,184.31,0.7]
[1760805119090,3.45218886,184.36,184.31,4.15218886]
[1760805119385,3.45218886,184.33,184.26,22.88]
[1760805119578,3.45218886,184.33,184.29,0.7]
[1760805119776,3.45218886,184.3,184.25,11.53647521]
[1760805119980,3.45218886,184.28,184.26,0.7]
[1760805120389,0.66,184.31,184.26,0.7]
[1760805120701,3.45218886,184.28,184.25,11.53647521]
[1760805120906,3.45218886,184.26,184.25,11.53647521]
[1760805121213,3.45218886,184.28,184.25,11.53647521]
[1760805121402,3.45218886,184.28,184.26,0.7]
[1760805121610,3.45218886,184.29,184.27,0.7]
[1760805121800,3.45218886,184.31,184.27,6.12664306]
[1760805121999,3.45218886,184.28,184.25,12.23647521]
[1760805122184,3.45218886,184.27,184.25,11.53647521]
[1760805122389,3.45218886,184.26,184.25,11.53647521]
[1760805122906,3.45218886,184.28,184.25,11.53647521]
[1760805123508,26.33218886,184.29,184.25,12.23647521]
[1760805124004,26.33218886,184.3,184.25,11.53647521]
[1760805124197,26.33218886,184.32,184.26,0.7]
[1760805124504,6.28937653,184.36,184.29,3.45218886]
[1760805124711,4.11218886,184.37,184.3,4.15218886]
[1760805124892,3.45218886,184.36,184.31,0.7]
[1760805125507,0.66,184.36,184.3,3.45218886]
[1760805125687,0.66,184.36,184.31,0.7]
[1760805125882,0.66,184.36,184.31,6.1255374]
[1760805126085,26.33218886,184.37,184.28,0.7]
[1760805126086,3.45218886,184.33,184.28,0.7]
[1760805126290,3.45218886,184.35,184.29,4.15218886]
[1760805126512,3.45218886,184.35,184.29,3.45218886]
[1760805126717,3.45218886,184.35,184.29,4.17218886]
[1760805127712,4.17218886,184.34,184.29,0.72]
[1760805128015,3.45218886,184.33,184.29,0.72]
[1760805128410,4.17218886,184.32,184.26,0.72]
[1760805128620,3.45218886,184.31,184.26,0.72]
[1760805128904,3.45218886,184.29,184.23,13.56929414]
[1760805129110,28.30452682,184.35,184.21,13.56705431]
[1760805129111,3.45218886,184.28,184.24,6.14770299]
[1760805129290,3.45218886,184.28,184.24,5.42770299]
[1760805129492,3.45218886,184.28,184.25,0.72]
[1760805129892,3.45218886,184.28,184.23,5.427966]
[1760805130103,3.45218886,184.29,184.24,0.72]
[1760805130298,3.45218886,184.29,184.25,0.72]
[1760805131006,3.45218886,184.26,184.21,19.715349]
[1760805131211,3.45218886,184.25,184.21,19.715349]
[1760805131394,3.45218886,184.25,184.21,14.28705431]
[1760805131601,3.45218886,184.24,184.21,14.28705431]
[1760805131908,3.45218886,184.23,184.21,13.56705431]
[1760805132101,3.45218886,184.22,184.21,13.56705431]
[1760805132500,0.72,184.24,184.21,13.56705431]
[1760805132690,3.45218886,184.22,184.21,13.56705431]
[1760805133097,0.72,184.26,184.21,14.28705431]
[1760805133326,3.45218886,184.24,184.21,13.56705431]
[1760805133609,14.32866407,184.22,184.21,12.87705431]
[1760805133819,22.88,184.19,184.16,0.1]
[1760805134031,14.32866407,184.17,184.16,0.1]
[1760805134321,10.87647521,184.17,184.16,0.1]
[1760805134525,14.32866407,184.17,184.16,0.1]
[1760805135396,19.44022134,184.17,184.16,0.1]
[1760805137216,8.56374613,184.17,184.16,0.1]
[1760805137611,24.86998731,184.17,184.16,0.1]
[1760805141707,22.88,184.1,184.07,0.71]
[1760805141908,8.56374613,184.08,184.05,0.71]
[1760805142222,8.56374613,184.08,184.01,5.43426588]
[1760805142223,8.56374613,184.07,184.06,0.71]
[1760805143202,22.88,184.04,184.0,15.0]
[1760805143513,31.44374613,184.01,184.0,15.0]
[1760805143917,8.56374613,184.01,184.0,15.71]
[1760805144103,8.56374613,184.03,184.0,15.71]
[1760805144442,8.56374613,184.03,184.01,0.71]
[1760805144740,22.88,184.06,184.01,0.71]
[1760805145030,16.30683089,184.15,184.02,5.43419193]
[1760805145232,16.30683089,184.15,184.03,0.71]
[1760805145541,8.56374613,184.08,184.05,22.88]
[1760805145827,8.56374613,184.08,184.06,0.71]
[1760805146232,8.56374613,184.07,184.06,0.71]
[1760805147142,8.56374613,184.09,184.06,6.14298276]
[1760805147300,10.87647521,184.16,184.07,0.71]
[1760805147301,8.56374613,184.11,184.07,0.71]
[1760805147723,8.56374613,184.09,184.07,0.71]
[1760805148025,8.56374613,184.11,184.07,0.71]
[1760805148619,5.42888165,184.2,184.09,8.56374613]
[1760805148620,10.87647521,184.2,184.09,8.56374613]
[1760805148824,8.56374613,184.17,184.12,8.56374613]
[1760805148999,8.56374613,184.17,184.13,0.71]
[1760805149195,8.56374613,184.16,184.13,0.71]
[1760805149415,8.56374613,184.15,184.14,0.71]
[1760805149821,8.56374613,184.15,184.1,0.71]
[1760805150027,10.87647521,184.18,184.11,0.71]
[1760805150321,8.56374613,184.12,184.08,0.71]
[1760805150523,8.56374613,184.09,184.08,0.71]
[1760805150906,8.56374613,184.09,184.06,5.43299441]
[1760805151107,8.56374613,184.09,184.07,0.71]
[1760805151507,8.56374613,184.09,184.08,0.71]
[1760805151709,8.56374613,184.09,184.04,0.71]
[1760805152005,8.56374613,184.08,184.05,0.71]
[1760805152219,8.56374613,184.09,184.05,0.71]
[1760805152416,8.56374613,184.08,184.05,0.71]
[1760805152929,8.56374613,184.09,184.06,5.43301097]
[1760805153108,8.56374613,184.08,184.07,0.71]
[1760805153430,8.56374613,184.08,184.03,5.43385541]
[1760805153612,8.56374613,184.1,184.07,0.71]
[1760805153806,10.87647521,184.16,184.08,0.71]
[1760805154123,1034.7,185.98,184.08,0.71]
[1760805154124,0.69,184.42,184.35,1.99999999]
[1760805154430,28.86,184.38,184.35,10.56374612]
[1760805154729,28.86,184.37,184.35,1.99999999]
[1760805154911,0.89,184.36,184.35,1.99999999]
[1760805155314,0.89,184.36,184.31,8.56374613]
[1760805155516,28.9,184.35,184.31,8.56374613]
[1760805155722,28.9,184.35,184.3,1.99999999]
[1760805156028,0.69,184.34,184.29,10.56374612]
[1760805156230,0.69,184.33,184.31,1.99999999]
[1760805156522,0.69,184.32,184.31,1.99999999]
[1760805157103,29.57,184.32,184.31,1.99999999]
[1760805157301,0.89,184.36,184.32,1.99999999]
[1760805157528,0.2,184.36,184.35,8.56374613]
[1760805157706,29.06,184.36,184.35,10.56374612]
[1760805157900,0.2,184.36,184.35,10.56374612]
[1760805158112,29.08,184.36,184.35,10.56374612]
[1760805158437,0.2,184.36,184.35,1.99999999]
[1760805158725,0.69,184.4,184.39,1.99999999]
[1760805158923,0.69,184.43,184.39,10.56374612]
[1760805159124,0.69,184.43,184.41,8.56374613]
[1760805159523,0.69,184.42,184.41,8.56374613]
[1760805159902,0.69,184.42,184.4,1.99999999]
[1760805160102,0.69,184.41,184.4,1.99999999]
[1760805160307,0.69,184.41,184.39,10.56374612]
[1760805160507,0.69,184.4,184.38,1.99999999]
[1760805160719,22.88,184.45,184.38,15.98729074]
[1760805160922,0.69,184.43,184.4,8.56374613]
[1760805161114,0.2,184.49,184.4,8.56374613]
[1760805161115,0.69,184.42,184.4,8.56374613]
[1760805161407,0.69,184.41,184.4,8.56374613]
[1760805161715,0.69,184.41,184.38,15.98723136]
[1760805161924,0.69,184.4,184.38,15.98723136]
[1760805162307,0.69,184.39,184.38,15.98723136]
[1760805162503,22.88,184.47,184.4,1.99999999]
[1760805162708,8.56374613,184.45,184.37,1.99999999]
[1760805163031,0.69,184.44,184.36,5.42411566]
[1760805163213,0.69,184.43,184.36,5.42411566]
[1760805163411,0.7,184.42,184.36,5.42411566]
[1760805163723,0.7,184.41,184.36,13.98786179]
[1760805163925,0.7,184.4,184.36,13.98786179]
[1760805164125,0.7,184.39,184.35,31.44374613]
[1760805164435,0.7,184.38,184.35,31.44374613]
[1760805164608,0.7,184.37,184.35,31.44374613]
[1760805164809,0.7,184.36,184.35,8.56374613]
[1760805165019,0.7,184.39,184.35,10.56374612]
[1760805165216,0.7,184.38,184.36,1.99999999]
[1760805165430,0.7,184.37,184.36,1.99999999]
[1760805166110,0.7,184.37,184.36,7.42417009]
[1760805166520,0.7,184.41,184.36,7.42417009]
[1760805166733,0.7,184.4,184.36,7.42417009]
[1760805166932,0.7,184.43,184.37,8.56374613]
[1760805167236,23.58,184.43,184.39,1.99999999]
[1760805167427,0.7,184.42,184.39,10.56374612]
[1760805167735,0.7,184.42,184.4,1.99999999]
[1760805168324,0.7,184.42,184.4,7.42279161]
[1760805169127,0.7,184.42,184.4,5.42279162]
[1760805169332,0.7,184.42,184.4,7.42279161]
[1760805170320,0.7,184.42,184.4,5.42279162]
[1760805170516,0.7,184.46,184.4,7.42279161]
[1760805170831,22.88,184.44,184.41,1.99999999]
[1760805171022,0.7,184.43,184.4,5.42279162]
[1760805171224,0.7,184.42,184.4,5.42279162]
[1760805171417,0.7,184.42,184.4,7.42279161]
[1760805171820,9.26374613,184.44,184.4,7.42279161]
[1760805172016,22.88,184.48,184.4,7.42279161]
[1760805172216,8.56374613,184.45,184.4,7.42279161]
[1760805172434,0.7,184.44,184.4,7.42279161]
[1760805172939,8.56374613,184.46,184.41,1.99999999]
[1760805173125,0.7,184.45,184.41,1.99999999]
[1760805173319,0.7,184.44,184.41,1.99999999]
[1760805173514,0.7,184.44,184.4,5.42279162]
[1760805173515,8.56374613,184.42,184.34,5.42475859]
[1760805173825,22.88,184.44,184.36,1.27999999]
[1760805173826,0.7,184.41,184.36,1.27999999]
[1760805174037,9.26374613,184.4,184.36,1.27999999]
[1760805174235,0.7,184.4,184.34,20.26665507]
[1760805174542,8.56374613,184.39,184.38,1.27999999]
[1760805174742,9.26374613,184.39,184.38,1.27999999]
[1760805174933,9.26374613,184.39,184.34,1.27999999]
[1760805175135,9.26374613,184.38,184.34,1.27999999]
[1760805175325,0.7,184.38,184.36,1.27999999]
[1760805175524,0.7,184.37,184.36,1.27999999]
[1760805175726,0.7,184.37,184.35,1.27999999]
[1760805176333,6.31948301,184.36,184.35,1.27999999]
[1760805176740,22.88,184.39,184.35,1.27999999]
[1760805176945,6.31948301,184.39,184.36,1.27999999]
[1760805177147,0.7,184.39,184.36,1.27999999]
[1760805177930,6.31948301,184.39,184.36,1.27999999]
[1760805178531,0.7,184.38,184.36,1.27999999]
[1760805178734,6.31948301,184.37,184.35,1.27999999]
[1760805178940,0.7,184.36,184.35,1.27999999]
[1760805179139,5.61948301,184.38,184.35,6.70446432]
[1760805179650,6.31948301,184.38,184.35,6.70446432]